[Event "125-Jahre Werder Bremen 2024"]
[Site "Bremen"]
[Date "2024.03.08"]
[Round "7.6"]
[White "Reuker, Jari"]
[Black "Krastev, Alexander"]
[Result "1/2-1/2"]
[ECO "A62"]
[WhiteElo "2383"]
[BlackElo "2457"]
[Annotator "TA"]
[PlyCount "90"]
[EventDate "2024.02.26"]
[EventType "swiss"]
[EventCountry "GER"]
[SourceTitle "playchess.com"]
[Source "ChessBase"]
[SourceQuality "1"]
[TimeControl "40/6000+30:1800+30"]

{[%evp 26,90,68,66,52,80,59,53,51,47,91,35,64,78,66,48,86,95,91,58,97,79,118,104,204,189,214,225,222,205,292,89,426,402,356,216,229,0,0,8,9,-33,-35,-17,-20,-72,-54,-4,0,0,-15,-91,-89,-94,-28,-7,0,0,0,0,0,0,0,0,94,99,182]} 1. d4 {[%emt 0:00:12]} Nf6 {[%emt 0:00:21]} 2. c4 {[%emt 0:00:14]} e6 {[%emt 0:00:13]} 3. g3 {[%emt 0:00:55]} c5 {[%emt 0:01:00]} 4. d5 {[%emt 0:00:08]} exd5 {[%emt 0:00:08]} 5. cxd5 {[%emt 0:00:05]} d6 {[%emt 0:00:04]} 6. Nc3 {[%emt 0:00:09]} g6 {[%emt 0:00:15]} 7. Bg2 {[%emt 0:00:09]} Bg7 {[%emt 0:00:06]} 8. Nf3 {[%emt 0:00:08]} O-O {[%emt 0:00:08]} 9. O-O {[%emt 0:00:10]} Re8 {[%emt 0:00:13]} 10. Re1 {[%emt 0:00:15]} a6 {[%emt 0:37:58]} 11. a4 {[%emt 0:00:18] A62: Modern Benoni: Fianchetto Variation without early ...Nbd7.} Ne4 {[%emt 0:02:33]} 12. Nxe4 {[%emt 0:00:32]} Rxe4 {[%emt 0:00:04]} 13. Qc2 {[%emt 0:07:37]} Bf5 {[%emt 0:10:40]} 14. Bh3 {[%emt 0:05:34]} Rxa4 {[%emt 0:16:40]} 15. Qxa4 {[%emt 0:00:36]} Bxh3 {[%emt 0:00:02]} 16. Bg5 {[%emt 0:04:04]} f6 $1 {[%emt 0:04:51]} 17. Bd2 $146 {[%emt 0:03:32]} ({Predecessor:} 17. Bf4 g5 18. Bd2 Nd7 19. Qb3 b5 20. Bc3 b4 21. Bd2 h6 22. Qd3 Qc8 23. e4 {½-½ Feng,E (1885)-Gascon del Nogal,J (2458) Titled Tuesday intern op 22nd Nov Late blitz 2022 (8)}) 17... b5 {[%emt 0:06:08]} 18. Qh4 {[%emt 0:05:23]} (18. Qa5 $16 Qxa5 19. Bxa5) 18... Bd7 {[%emt 0:08:27]} 19. b4 {[%emt 0:07:41]} Be8 {[%emt 0:00:42]} 20. e4 {[%emt 0:07:55]} g5 {[%emt 0:05:17] [#]} 21. Qh3 $1 {[%emt 0:09:02]} Qd7 {[%emt 0:02:36]} 22. Qf1 {[%emt 0:02:51]} Bh5 {[%emt 0:01:26]} 23. Qd3 {[%emt 0:12:41]} Qg4 {[%emt 0:00:11]} 24. bxc5 {[%emt 0:03:32]} dxc5 {[%emt 0:01:12]} (24... Nd7 $16 {keeps fighting.}) 25. d6 $1 $18 {[%emt 0:00:32]} Bf7 {[%emt 0:03:17]} 26. e5 {[%emt 0:02:59]} Nd7 {[%emt 0:00:40]} 27. h3 $1 {[%emt 0:08:17]} Qxh3 {[%emt 0:01:07] [#]} (27... Qe6 $142 28. exf6 c4 29. Qxh7+ (29. Nxg5 Qxe1+ 30. Bxe1 cxd3 $11) 29... Kxh7 30. Nxg5+ (30. Rxe6 Bxf6 31. Rxf6 Nxf6 $18) 30... Kg6 31. Rxe6 (31. Nxe6 Bxf6 32. Nf4+ Kg7 $18) 31... Bxe6 32. fxg7 (32. Nxe6 Bxf6 33. Rb1 c3 $17) 32... Bd5) 28. Bxg5 $2 {[%emt 0:04:47]} (28. exf6 $1 $18 {[%mdl 512] is more deadly.} Nxf6 29. Nxg5) 28... Bc4 $2 {[%emt 0:07:38][%mdl 8192]} (28... fxg5 $2 29. Nxg5 Qh5 (29... Nxe5 $2 30. Qe4 $18) 30. Nxf7 $18) (28... fxe5 $16 29. Qe4 Ra7) 29. Qe4 $18 {[%emt 0:00:39]} Re8 {[%emt 0:00:01]} 30. Bh4 {[%emt 0:05:21]} Qe6 {[%emt 0:00:03]} 31. Rad1 $2 {[%emt 0:06:16]} (31. Rxa6 $18 {Strongly threatening Ra7.} Bd5 32. Qd3 fxe5 (32... c4 $2 33. Qd1 $18) 33. Ng5) 31... h6 $11 {[%emt 0:01:12]} 32. Qc6 {[%emt 0:01:38]} fxe5 {[%emt 0:00:05]} 33. Be7 {[%emt 0:00:44]} (33. Nd2 $5 Bd5 34. Qxa6 $16) 33... b4 {[%emt 0:00:55]} 34. Nh4 {[%emt 0:03:18]} b3 {[%emt 0:00:25]} 35. f4 {[%emt 0:00:33]} (35. Qe4 $11 {keeps the balance.}) 35... Qg4 {[%emt 0:00:20]} 36. f5 $1 {[%emt 0:07:29]} Qxg3+ {[%emt 0:00:02]} (36... Bb5 $5 37. Qd5+ $8 Kh7 38. Qxb3 e4 $11) 37. Ng2 $1 {[%emt 0:00:01]} Bb5 {[%emt 0:00:22]} 38. Qd5+ {[%emt 0:00:03]} (38. Qe4 $1 $11 Qc3 39. Qd5+ Kh8 40. Re3) 38... Kh7 {[%emt 0:01:36]} 39. Qe4 {[%emt 0:02:29]} Bf6 {[%emt 0:00:31]} (39... Nf6 $17 40. Bxf6 Bxf6) 40. Re3 $11 {[%emt 0:00:30]} Qg7 {[%emt 0:00:29]} 41. Rxb3 {[%emt 0:03:50]} Rc8 {[%emt 0:06:16]} 42. Bxf6 {[%emt 0:14:34]} Nxf6 {[%emt 0:07:53]} 43. Qxe5 {[%emt 0:00:18]} Rg8 {[%emt 0:00:09]} 44. Rb2 {[%emt 0:02:29]} (44. Qe7 Ba4 45. Rbb1 (45. Qxg7+ Rxg7 46. Rbd3 Bxd1 $15) 45... Qxe7 46. dxe7 Bxd1 47. Rxd1 Kg7) 44... Bc6 {[%emt 0:01:39]} (44... Qg4 $11 {remains equal.} 45. Rbd2 Nd7 (45... Ne4 46. d7 $11)) 45. Qe7 $1 $16 {[%emt 0:00:36]} Nd5 {[%emt 0:12:04]} (45... c4 $16) 1/2-1/2

[Event "125-Jahre Werder Bremen 2024"]
[Site "Bremen"]
[Date "2024.03.08"]
[Round "7.7"]
[White "Colbow, Collin"]
[Black "Schneider, Jana"]
[Result "1/2-1/2"]
[ECO "C55"]
[WhiteElo "2373"]
[BlackElo "2303"]
[Annotator "TA"]
[PlyCount "40"]
[EventDate "2024.02.26"]
[EventType "swiss"]
[EventCountry "GER"]
[SourceTitle "playchess.com"]
[Source "ChessBase"]
[SourceQuality "1"]
[TimeControl "40/6000+30:1800+30"]

{[%evp 11,40,8,22,6,29,18,21,7,8,6,16,9,8,9,8,0,10,3,4,14,31,10,15,13,4,6,6,3,7,2,8]} 1. e4 {[%emt 0:08:43]} e5 {[%emt 0:00:13]} 2. Nf3 {[%emt 0:00:06]} Nc6 {[%emt 0:00:06]} 3. Bc4 {[%emt 0:00:08]} Nf6 {[%emt 0:00:08]} 4. d3 {[%emt 0:00:30]} Be7 {[%emt 0:01:03]} 5. O-O {[%emt 0:01:09]} O-O {[%emt 0:00:41]} 6. Nc3 {[%emt 0:01:14]} d6 {[%emt 0:00:52]} 7. a4 {[%emt 0:00:06]} Na5 {[%emt 0:02:51]} 8. Ba2 {[%emt 0:01:29]} c5 {[%emt 0:00:12]} 9. Nd5 {[%emt 0:06:41]} Nxd5 {[%emt 0:02:33]} 10. Bxd5 {[%emt 0:03:27]} Be6 {[%emt 0:02:53]} 11. Bxe6 {[%emt 0:06:29]} fxe6 {[%emt 0:00:11]} 12. c3 {[%emt 0:00:51]} Nc6 {[%emt 0:01:09]} 13. Bd2 {[%emt 0:07:15]} a6 {[%emt 0:19:03]} 14. b4 {[%emt 0:02:53]} cxb4 {[%emt 0:04:59]} 15. cxb4 {[%emt 0:00:10]} b5 {[%emt 0:02:14]} 16. axb5 {[%emt 0:10:49]} axb5 {[%emt 0:00:09] The position is equal.} 17. Rxa8 {[%emt 0:00:10]} Qxa8 {[%emt 0:00:06]} 18. Qb3 {[%emt 0:01:59]} Kf7 {[%emt 0:02:42]} 19. Rc1 {[%emt 0:09:17]} Rc8 {[%emt 0:01:17]} 20. Qc2 {[%emt 0:17:33]} Bf6 {[%emt 0:06:46] A rather calm draw.   Weighted Error Value: White=0.06 (flawless) /Black=0.04 (flawless) .  OK:         	White=2     	Black=6} 1/2-1/2

[Event "125-Jahre Werder Bremen 2024"]
[Site "Bremen"]
[Date "2024.03.08"]
[Round "7.8"]
[White "Kopylov, Michael"]
[Black "Breutigam, Martin"]
[Result "1/2-1/2"]
[ECO "E01"]
[WhiteElo "2352"]
[BlackElo "2359"]
[Annotator "TA"]
[PlyCount "82"]
[EventDate "2024.02.26"]
[EventType "swiss"]
[EventCountry "GER"]
[SourceTitle "playchess.com"]
[Source "ChessBase"]
[SourceQuality "1"]
[TimeControl "40/6000+30:1800+30"]

{[%evp 20,82,20,14,13,9,41,11,25,16,50,4,2,0,31,13,23,0,0,0,0,0,0,0,0,0,0,0,0,0,0,0,0,-47,-47,-118,0,-9,0,0,0,0,0,0,0,0,0,0,0,0,0,0,0,0,0,0,0,0,0,0,0,0,0,0,0]} 1. d4 {[%emt 0:01:48]} d5 {[%emt 0:00:19]} 2. c4 {[%emt 0:00:16]} e6 {[%emt 0:00:11]} 3. Nf3 {[%emt 0:00:33]} Nf6 {[%emt 0:00:19]} 4. g3 {[%emt 0:01:13]} c5 {[%emt 0:00:17]} 5. Bg2 {[%emt 0:00:54]} cxd4 {[%emt 0:00:32]} 6. O-O {[%emt 0:00:36]} Bc5 {[%emt 0:00:26][%cal Bf8c5,Bc5b6,Bb6c7,Bc7e5][%mdl 32]} 7. Nxd4 {[%emt 0:02:41]} O-O {[%emt 0:00:18]} 8. cxd5 {[%emt 0:06:56]} Nxd5 {[%emt 0:00:36]} 9. Nb3 {[%emt 0:11:23]} Bb6 {[%emt 0:01:00]} 10. Na3 {[%emt 0:01:32]} Nc6 {[%emt 0:09:28][%cal Bb8c6,Bc6e7,Be7d5][%mdl 32]} 11. Nc4 {[%emt 0:05:24]} Bc7 {[%emt 0:03:23]} 12. Ne3 {[%emt 0:04:15][%cal Re3d5]} Nce7 {[%emt 0:05:06]} 13. Nxd5 {[%emt 0:06:15]} Nxd5 {[%emt 0:00:30]} 14. Bd2 {[%emt 0:05:59]} Be5 {[%emt 0:15:59]} 15. Na5 {[%emt 0:15:43]} (15. e4 $14 {is superior.} Nf6 16. Qe2) 15... Bxb2 $11 {[%emt 0:16:41]} 16. Rb1 {[%emt 0:00:15]} Qf6 {[%emt 0:01:10]} 17. Qc2 {[%emt 0:08:18]} Bd4 {[%emt 0:01:52]} 18. Nxb7 {[%emt 0:01:23]} Rb8 {[%emt 0:02:38]} 19. Qc6 {[%emt 0:06:28]} Bxb7 {[%emt 0:16:27]} 20. Rxb7 {[%emt 0:00:18]} Rbc8 {[%emt 0:00:08]} 21. Qa4 {[%emt 0:08:50]} Nc3 {[%emt 0:03:08]} 22. Bxc3 {[%emt 0:05:30]} Rxc3 {[%emt 0:00:07]} 23. e3 {[%emt 0:00:32]} Bb6 {[%emt 0:00:17]} 24. Rd1 {[%emt 0:00:37]} g6 {[%emt 0:01:10]} 25. Rbd7 {[%emt 0:04:02]} Kg7 {[%emt 0:01:56]} 26. Qb4 {[%emt 0:02:27]} (26. Bb7 $11 {deserves consideration.}) 26... Rc2 $15 {[%emt 0:01:55][%csl LRa2,LRf2]} 27. R7d2 {[%emt 0:00:08]} ({White should play} 27. R1d2 $15 Qa1+ 28. Rd1 Qxa2 29. Qf4) 27... Rc5 {[%emt 0:01:08]} ({Black should try} 27... Rd8 $17 28. Rxc2 Rxd1+ 29. Bf1 Bxe3) 28. Qf4 {[%emt 0:01:44] The position is equal.} Rf5 {[%emt 0:00:26]} 29. Qc4 {[%emt 0:00:50]} h5 {[%emt 0:00:54]} 30. h4 {[%emt 0:01:26]} Rh8 {[%emt 0:04:12]} 31. Be4 {[%emt 0:01:20]} Re5 {[%emt 0:02:03]} 32. Kg2 {[%emt 0:04:38]} Re8 {[%emt 0:10:19]} 33. Rd7 {[%emt 0:00:40]} Rd8 {[%emt 0:05:02]} 34. Rxd8 {[%emt 0:00:44]} Bxd8 {[%emt 0:00:01]} 35. Bc2 {[%emt 0:00:18]} Bb6 {[%emt 0:00:19]} 36. Rd7 {[%emt 0:00:41]} Rc5 {[%emt 0:00:39]} 37. Qe4 {[%emt 0:00:38]} Rf5 {[%emt 0:01:05]} 38. Rd2 {[%emt 0:00:45]} Ba5 {[%emt 0:00:09]} 39. Re2 {[%emt 0:00:23]} Rc5 {[%emt 0:03:44][%cal Bf5c5,Bc5c7,Bc7c2][%mdl 32]} 40. Bb3 {[%emt 0:00:42]} Rc7 {[%emt 0:01:57]} 41. Rc2 {[%emt 0:30:46]} Rxc2 {[%emt 0:32:05] Weighted Error Value: White=0.10 (very precise) /Black=0.08 (flawless) .  Mistake:       	White=3     	Black=1      Inaccurate:     	White=1     	Black=3      OK:         	White=18    	Black=12     Best:        	---       	Black=1} 1/2-1/2

[Event "125-Jahre Werder Bremen 2024"]
[Site "Bremen"]
[Date "2024.03.08"]
[Round "7.9"]
[White "Knaak, Rainer"]
[Black "Meins, Gerlef"]
[Result "1/2-1/2"]
[ECO "D27"]
[WhiteElo "2450"]
[BlackElo "2390"]
[Annotator "TA"]
[PlyCount "50"]
[EventDate "2024.02.26"]
[EventType "swiss"]
[EventCountry "GER"]
[SourceTitle "playchess.com"]
[Source "ChessBase"]
[SourceQuality "1"]
[TimeControl "40/6000+30:1800+30"]

{[%evp 23,50,16,29,34,36,0,0,10,11,17,5,0,0,0,0,0,0,0,0,-67,-20,-100,-70,-70,0,-102,0,-60,0]} 1. d4 {[%emt 0:00:04]} d5 {[%emt 0:03:09]} 2. c4 {[%emt 0:00:18]} dxc4 {[%emt 0:00:33]} 3. Nf3 {[%emt 0:00:47]} Nf6 {[%emt 0:00:12]} 4. e3 {[%emt 0:00:12]} e6 {[%emt 0:00:39]} 5. Bxc4 {[%emt 0:00:05]} c5 {[%emt 0:00:22]} 6. O-O {[%emt 0:00:07]} a6 {[%emt 0:00:42]} 7. b3 {[%emt 0:01:22]} cxd4 {[%emt 0:09:42]} 8. Nxd4 {[%emt 0:00:22]} Be7 {[%emt 0:01:28]} 9. Bb2 {[%emt 0:00:44]} O-O {[%emt 0:00:22]} 10. Be2 {[%emt 0:00:19]} Bd7 {[%emt 0:18:25]} 11. Nd2 {[%emt 0:21:31]} Nc6 {[%emt 0:00:33][%cal Bb8c6,Bc6b4,Bb4d3][%mdl 32]} 12. Bf3 {[%emt 0:00:40]} Rc8 {[%emt 0:02:41]} 13. Rc1 {[%emt 0:00:38]} Nb4 {[%emt 0:16:16]} 14. Rxc8 {[%emt 0:43:38]} ({Natürlich nicht} 14. Bxb7 Rxc1 15. Qxc1 e5 $17) 14... Bxc8 {[%emt 0:07:15]} 15. a3 {[%emt 0:01:07] Die Stellung ist ausgeglichen.} Nd3 {[%emt 0:01:27]} 16. Ba1 {[%emt 0:00:05]} e5 {[%emt 0:02:21]} 17. Nc4 {[%emt 0:03:33]} Nxf2 {[%emt 0:09:44]} 18. Rxf2 {[%emt 0:00:21]} exd4 {[%emt 0:00:06]} 19. Bxd4 {[%emt 0:02:18]} b5 {[%emt 0:08:32]} 20. Ne5 {[%emt 0:00:06]} Bxa3 {[%emt 0:00:26]} 21. Rd2 {[%emt 0:00:23]} (21. Qa1 $11 Qd6 22. Rc2) 21... Qd6 {[%emt 0:04:30]} (21... Qe7 $15 {verdient Beachtung.}) 22. Bb2 {[%emt 0:06:04]} (22. Rc2 $11) 22... Qc5 {[%emt 0:00:16]} 23. Bd4 {[%emt 0:00:08]} Qd6 {[%emt 0:01:32]} 24. Bb2 {[%emt 0:00:06]} Qc5 {[%emt 0:00:06]} 25. Bd4 {[%emt 0:00:08]} Qd6 {[%emt 0:21:41] Gewichteter Fehlerwert: Weiß=0.19 (sehr präzise) /Schwarz=0.27 (präzise) .  Fehler:       	Weiß=2     	Schwarz=2     Ungenau:       	Weiß=1     	Schwarz=1     OK:         	Weiß=5     	Schwarz=4} (25... Qe7 $1 $15 26. h3 (26. Nc6 Qe6 $17) 26... Bb7 27. Bxb7 Qxb7) 1/2-1/2

[Event "125-Jahre Werder Bremen 2024"]
[Site "Bremen"]
[Date "2024.03.08"]
[Round "7.10"]
[White "Pruijssers, Roeland"]
[Black "Radeva, Viktoria"]
[Result "1-0"]
[ECO "A08"]
[WhiteElo "2537"]
[BlackElo "2325"]
[Annotator "TA"]
[PlyCount "69"]
[EventDate "2024.02.26"]
[EventType "swiss"]
[EventCountry "GER"]
[SourceTitle "playchess.com"]
[Source "ChessBase"]
[SourceQuality "1"]
[TimeControl "40/6000+30:1800+30"]

{[%evp 15,69,8,15,0,-6,0,14,15,22,20,33,14,18,17,10,23,19,18,34,18,13,19,57,50,52,0,79,89,91,72,248,220,329,318,1077,1073,1140,1111,1336,1267,1684,1589,1652,1902,29983,29984,29984,29985,29985,29986,29986,29987,29991,29992,29992,29993]} 1. Nf3 {[%emt 0:00:06]} d5 {[%emt 1:41:00]} 2. g3 {[%emt 0:00:15]} Nf6 {[%emt 0:00:00]} 3. Bg2 {[%emt 0:00:10]} e6 {[%emt 0:00:00]} 4. O-O {[%emt 0:00:10]} c5 {[%emt 0:00:00]} 5. d3 {[%emt 0:00:14]} Nc6 {[%emt 0:00:00]} 6. Nbd2 {[%emt 0:00:10]} g6 {[%emt 0:00:00]} 7. e4 {[%emt 0:00:12]} Bg7 {[%emt 0:00:00]} 8. c3 {[%emt 0:00:10]} O-O {[%emt 0:00:00]} 9. e5 {[%emt 0:00:21]} Nd7 {[%emt 0:00:00]} 10. d4 {[%emt 0:00:10]} cxd4 {[%emt 0:00:00]} 11. cxd4 {[%emt 0:00:24] The position is equal.} a5 {[%emt 0:00:00]} 12. a4 {[%emt 0:02:20]} b6 {[%emt 0:00:00]} 13. Re1 {[%emt 0:00:20]} Ba6 {[%emt 0:00:00]} 14. Nb1 {[%emt 0:03:04]} b5 {[%emt 0:00:00]} 15. axb5 {[%emt 0:01:47]} Bxb5 {[%emt 0:00:00]} 16. Nc3 {[%emt 0:00:07]} Ba6 {[%emt 0:00:00]} 17. h4 {[%emt 0:01:13][%cal Oh4h5]} h6 {[%emt 0:00:00]} 18. Be3 {[%emt 0:27:24]} Nb6 {[%emt 0:00:00]} 19. b3 {[%emt 0:01:30]} Rb8 {[%emt 0:00:00]} 20. Nh2 {[%emt 0:13:12]} (20. Qd2 $14) 20... h5 {[%emt 0:00:00]} (20... Nd7 $11 {remains equal.}) 21. Bg5 $16 {[%emt 0:23:40]} Qc8 {[%emt 0:00:00][%cal Oc6e5]} 22. Rc1 {[%emt 0:00:55] White is more active.} (22. g4 {seems wilder.} Nxe5 23. dxe5 Qxc3 24. gxh5 Bxe5 25. Rc1) 22... Qe8 $2 {[%emt 0:00:00] A mistake that costs the game.} (22... a4 $16 {keeps fighting.}) 23. g4 $18 {[%emt 0:03:39]} Nb4 {[%emt 0:00:00]} (23... f6 $142) 24. gxh5 {[%emt 0:11:35]} gxh5 $2 {[%emt 0:00:00]} (24... Bd3 25. Re3 Bf5) 25. Bf6 {[%emt 0:02:02]} (25. Qxh5 f6 26. Qxe8 Rbxe8 27. exf6 Bxf6 $11) 25... Nd7 {[%emt 0:00:00]} 26. Qxh5 {[%emt 0:07:43]} (26. Bxg7 Kxg7 27. Re3 (27. Qxh5 Rh8 $16) 27... f5 $16) 26... Nxf6 {[%emt 0:00:00]} 27. exf6 {[%emt 0:00:02]} Bxf6 {[%emt 0:00:00] [#]} 28. Ne4 $1 {[%emt 0:00:26][%mdl 512]} Qd8 {[%emt 0:00:28]} (28... Qe7 29. Rc7) 29. Ng5 {[%emt 0:04:18]} Bd3 {[%emt 0:03:15] [#] Inhibits Qh7+.} 30. Be4 $1 {[%emt 0:00:26][%mdl 512] White mates.} Bxe4 {[%emt 0:00:32]} 31. Rxe4 {[%emt 0:00:08][%csl Gg5][%cal Rh5h7,Be1e4,Be4g4,Bg4h4][%mdl 32]} Bxg5 {[%emt 0:00:07]} 32. Rg4 {[%emt 0:00:35]} Re8 {[%emt 0:02:10]} 33. Qh6 {[%emt 0:01:29]} f6 {[%emt 0:00:44][%cal Bf7f6,Bf6f5][%mdl 32]} 34. hxg5 {[%emt 0:00:57]} f5 {[%emt 0:00:13]} 35. Rh4 {[%emt 0:00:58] Weighted Error Value: White=0.05 (flawless) /Black=0.46.  Loses game:     	---       	Black=1      Mistake:       	White=1     	Black=3      Inaccurate:     	---       	Black=1      OK:         	White=7     	Black=6      Best:        	White=3     	---} 1-0

[Event "125-Jahre Werder Bremen 2024"]
[Site "Bremen"]
[Date "2024.03.08"]
[Round "7.11"]
[White "Soderstrom, Adrian"]
[Black "Hejazipour, Mitra"]
[Result "0-1"]
[ECO "B48"]
[WhiteElo "2288"]
[BlackElo "2356"]
[Annotator "TA"]
[PlyCount "100"]
[EventDate "2024.02.26"]
[EventType "swiss"]
[EventCountry "GER"]
[SourceTitle "playchess.com"]
[Source "ChessBase"]
[SourceQuality "1"]
[TimeControl "40/6000+30:1800+30"]

{[%evp 14,100,34,22,25,22,32,11,43,30,42,18,60,9,29,0,-6,-109,-79,-83,-59,-93,-89,-102,-131,-104,-89,-154,-148,-156,-76,-75,-78,-166,-83,-89,-71,-73,-75,-82,-74,-114,-64,-64,-54,-62,-54,-60,-58,-58,0,0,0,0,91,77,57,-36,-19,-9,-23,-22,-23,-30,-30,-48,-47,-223,-93,-154,-167,-170,-167,-442,-430,-435,-456,-454,-426,-646,-645,-29966,-29968,-29968,-29969,-29967,-6203,-5314,-2469]} 1. e4 {[%emt 0:01:46]} c5 {[%emt 0:00:09]} 2. Nf3 {[%emt 0:00:14]} e6 {[%emt 0:00:19]} 3. d4 {[%emt 0:00:06]} cxd4 {[%emt 0:00:08]} 4. Nxd4 {[%emt 0:00:19]} Nc6 {[%emt 0:00:12]} 5. Nc3 {[%emt 0:00:10]} Qc7 {[%emt 0:00:04]} 6. Be3 {[%emt 0:00:08]} a6 {[%emt 1:42:38]} 7. a3 {[%emt 0:00:43]} b5 {[%emt 0:00:00]} 8. Nxc6 {[%emt 0:00:08]} Qxc6 {[%emt 0:00:00]} 9. Bd3 {[%emt 0:00:10]} Bb7 {[%emt 0:00:00]} 10. Qd2 {[%emt 0:01:08]} b4 {[%emt 0:00:00] The position is equal.} 11. axb4 {[%emt 0:00:19]} Bxb4 {[%emt 0:00:00]} 12. Bd4 {[%emt 0:16:12]} f6 {[%emt 0:00:00]} 13. e5 {[%emt 0:12:16]} (13. O-O $14) 13... f5 {[%emt 0:00:00][%cal Og8e7]} 14. O-O-O {[%emt 0:09:56][%cal Og2g4]} Ne7 {[%emt 0:00:00][%cal Oe7d5]} 15. Qe2 {[%emt 0:11:14]} (15. Rhg1 $11 {keeps the balance.}) 15... Qxg2 {[%emt 0:00:00][%cal Ob7f3]} (15... O-O {simplifies} 16. Rhg1 Bxc3 17. bxc3 a5) 16. Rhg1 {[%emt 0:03:56]} Qh3 {[%emt 0:00:00]} 17. Rg3 {[%emt 0:13:47] Wards off Bf3} Qh4 {[%emt 0:00:00]} 18. Bc4 {[%emt 0:08:47]} Ng6 {[%emt 0:00:00]} (18... Qxh2 19. Kb1 $11) 19. Kb1 {[%emt 0:02:13]} O-O {[%emt 0:00:00][%cal Ob7c6]} (19... Qxh2 20. Bxe6 dxe6 21. Qc4 $15) 20. Na2 {[%emt 0:07:52]} (20. Na4 $142) 20... Be7 $17 {[%emt 0:00:00]} 21. Bc3 {[%emt 0:01:35]} Nf4 {[%emt 0:00:00]} (21... Qxh2 22. Rxd7 Bh4 (22... Qh1+ 23. Nc1 $11) 23. Bxe6+ (23. Rxg6 $2 hxg6 24. Bxe6+ Kh7 $19) 23... Kh8 24. Qe1 $17 (24. Rxg6 hxg6 25. Bb3 Bc6 $19)) (21... Bc6 $142 $1 22. Nb4 Bb5 (22... Qxh2 $2 23. Nxc6 Bh4 24. Rf3 $18)) 22. Qf1 {[%emt 0:01:27]} Nd5 {[%emt 0:00:00]} (22... Qxh2 23. Rxd7 Bg2 24. Rxg2 $18) 23. Bd2 {[%emt 0:02:15]} (23. Bxd5 $17 Bxd5 24. Rxd5 exd5 25. Qg2) 23... Rf7 {[%emt 0:00:00]} (23... f4 $19 24. Rh3 Qg5) 24. f4 {[%emt 0:00:50] Rh3 would now be deadly.} Bc5 {[%emt 0:00:00]} (24... Qxh2 $2 25. Rh3 $18) 25. Rh3 {[%emt 0:08:59]} Qe7 {[%emt 0:00:00] Black is more active.} 26. Nc3 {[%emt 0:00:50]} Nb6 {[%emt 0:00:00]} 27. Be2 {[%emt 0:01:00]} a5 {[%emt 0:01:37]} (27... Rb8 $17 28. Bxa6 Bc6) 28. Nb5 $15 {[%emt 0:01:03]} Nd5 {[%emt 0:01:04]} 29. c4 {[%emt 0:01:38]} Nb4 {[%emt 0:00:20] aiming for ...Be4+.} 30. Bf3 {[%emt 0:00:06]} Bc6 {[%emt 0:04:28]} 31. Bc3 {[%emt 0:00:16]} Be4+ {[%emt 0:01:01]} ({Better is} 31... g6 $15) 32. Bxe4 $11 {[%emt 0:00:27]} fxe4 {[%emt 0:00:01]} 33. Nd6 {[%emt 0:00:29]} Bxd6 {[%emt 0:00:14]} (33... Nd3 $1 $11 34. Rdxd3 exd3) 34. exd6 $16 {[%emt 0:00:03]} Qf8 {[%emt 0:00:15]} 35. Rg3 {[%emt 0:00:46]} (35. Qg2 $1 $14 Re8 (35... Rxf4 $2 36. Bxg7 Rf2 37. Qg3 $18) 36. Rg3 (36. Qxe4 Rf5 $16)) 35... Nd3 {[%emt 0:00:31] ...e5 is the strong threat.} (35... Rxf4 $2 36. Bxg7 (36. Rxg7+ Qxg7 37. Qxf4 Qg2 $18) 36... Qf5 37. Qg2 $18) 36. Qg2 {[%emt 0:01:17]} Nxf4 {[%emt 0:02:38]} 37. Qxe4 {[%emt 0:00:04]} Ng6 {[%emt 0:00:43][%cal Bf4g6,Bg6e5,Be5c4][%mdl 32]} 38. h4 {[%emt 0:01:41] Strongly threatening h5.} Rf4 {[%emt 0:01:18]} 39. Qb7 {[%emt 0:00:33]} Rd8 {[%emt 0:00:29]} (39... Nxh4 $2 40. Rxg7+ (40. Bxg7 Qf5+ 41. Ka2 Rg4 $18) 40... Qxg7 41. Bxg7 Kxg7 42. Qxa8 $18) 40. Ka2 $2 {[%emt 0:02:43]} (40. Qc7 $15 Rxh4 41. c5) 40... Rxh4 {[%emt 0:00:34]} (40... Rxc4 $19 {is more deadly. Hoping for ...Ra4+.} 41. Bxa5 Ra4+ 42. Ra3 Rxa3+ (42... Rxh4 $2 43. Bxd8 Rc4 44. Qxd7 $18) 43. bxa3 Qf5 44. Bxd8 Qc2+ 45. Qb2 Qxd1) 41. Bxa5 {[%emt 0:19:49]} (41. Qc7 $142) 41... Ra8 $17 {[%emt 0:02:26]} (41... Rxc4 42. Bxd8 Qxd8 43. Re3 $11) 42. Ra3 {[%emt 0:00:27] [#]} Ne5 $36 {[%emt 0:02:40][%cal Oa8b8][%mdl 2048] White must now prevent ...Rb8! White is under strong pressure.} (42... Rxc4 $2 43. Qxd7 Qc8 44. Qxc8+ Rcxc8 45. d7 $18) 43. Qg2 $2 {[%emt 0:06:10]} (43. Bc3 {keeps fighting.} Rxa3+ 44. Kxa3 Nxc4+ 45. Ka2) 43... Rg4 $19 {[%emt 0:11:02]} (43... Rxc4 44. Qe2 Qf4 45. Qd2 $19) 44. Qe2 {[%emt 0:01:58]} Nxc4 {[%emt 0:02:15]} 45. Qxg4 {[%emt 0:02:44]} Nxa3 {[%emt 0:00:10]} (45... Nxa5 46. Qa4 Ra7 47. Qb5 $18) 46. b4 {[%emt 0:01:31]} (46. bxa3 $142 Rxa5 47. Qh4) 46... Nc2 {[%emt 0:01:08][%cal Oc2b4] ( -> ...Nxb4+!)} 47. Qe4 {[%emt 0:00:30] [#]} Nxb4+ {[%emt 0:00:31][%mdl 512]} 48. Qxb4 {[%emt 0:00:04]} (48. Kb3 Nd5) 48... Qf5 {[%emt 0:00:32]} 49. Kb3 {[%emt 0:01:14]} Rxa5 {[%emt 0:00:43]} 50. Qc4 {[%emt 0:00:52]} Qb5+ {[%emt 0:01:07] Weighted Error Value: White=0.44/Black=0.17 (very precise) .  Loses game:     	White=1     	---        Mistake:       	White=8     	Black=6      Inaccurate:     	White=4     	Black=2      OK:         	White=16    	Black=18     Best:        	White=4     	Black=3} 0-1